Cogmind - Beta 15 @@@ ROGUE MODE // 2025.10.07 @ 15:37:24 Player: DietSnapple Result: Destroyed by S-10 Pest with Light Assault Rifle Performance ------------- Evolutions (0) 0 Regions Visited (2) 400 Robots Destroyed (34) 170 Value Destroyed (870) 870 Prototype IDs (0) 0 Alien Tech Used (0) 0 Bonus (0) 0 TOTAL SCORE: 1440 Bonus ------- None Cogmind --------- Core Integrity 0/250 Matter 37/300 Energy 250/250 System Corruption 0% Temperature Cool (0) Movement Rolling (95) Ox1 Location -10/Mines Parts ------- > --- POWER (1) -------- Ion Engine > --- PROPULSION (2) --- Wheel Wheel > --- UTILITY (2) ------ Large Storage Unit Seismic Detector > --- WEAPON (2) ------- Autogun > --- INVENTORY (15) --- Light Ion Engine Heat Sink Light Armor Plating Light Armor Plating Medium Laser Spread Laser Spread Laser Spread Laser Spread Laser Assault Rifle Autogun Autogun Grenade Launcher Mining Laser Peak State ------------ > --- POWER ------------ Light Ion Engine > --- PROPULSION ------- Light Treads Light Treads > --- UTILITY ---------- Large Storage Unit Seismic Detector > --- WEAPON ----------- Autogun Autogun > --- INVENTORY -------- Heat Sink Small Storage Unit EM Pulse Gun Medium Laser Particle Gun Spread Laser Spread Laser Spread Laser Spread Laser Assault Rifle Autogun Autogun Grenade Launcher Mining Laser [Rating: 11] Favorites ----------- Power Ion Engine Engine Ion Engine Propulsion Light Treads Treads Light Treads Wheel Wheel Utility Large Storage Unit Device Seismic Detector Storage Large Storage Unit Weapon Autogun Energy Gun EM Pulse Gun Ballistic Gun Autogun Launcher Grenade Launcher Build | -11 -10 -10 ------- Run | Yrd Mat Min Slots Evolved . | . . . Power . | . . . Propulsion . | . . . Utility . | . . . Weapon . | . . . Parts Attached 24 | 7 17 . Power 3 | 1 2 . Engine 3 | 1 2 . Core . | . . . Reactor . | . . . Propulsion 6 | 2 4 . Treads 2 | . 2 . Leg . | . . . Wheel 4 | 2 2 . Hover . | . . . Flight . | . . . Utility 5 | 2 3 . Device 2 | 1 1 . Storage 3 | 1 2 . Processor . | . . . Hackware . | . . . Protection . | . . . Artifact . | . . . Weapon 10 | 2 8 . Energy Gun 6 | 2 4 . Energy Cannon . | . . . Ballistic Gun 3 | . 3 . Ballistic Cannon . | . . . Launcher 1 | . 1 . Special Weapon . | . . . Impact Weapon . | . . . Slashing Weapon . | . . . Piercing Weapon . | . . . Special Melee Weapon . | . . . Unidentified Prototypes . | . . . Parts Lost 8 | . 8 . Power 1 | . 1 . Propulsion 2 | . 2 . Utility 1 | . 1 . Weapon 4 | . 4 . Highest Loss Streak 4 | . 4 . To Critical Strikes . | . . . Average Backups 10 | 4 11 14 Power . | . . 1 Propulsion . | 1 . . Utility 2 | . 2 3 Weapon 7 | 1 8 10 Tool/Special . | . . . Unused Backups 12 | . 2 10 Power . | . . . Propulsion . | . . . Utility 4 | . 1 3 Weapon 8 | . 1 7 Tool/Special . | . . . Average Slot Usage (%) 95 | . 95 85 Engine 14 | . 14 14 Treads 13 | . 13 . Wheel 14 | . 13 28 Device 12 | . 11 14 Storage 14 | . 14 14 Energy Gun 7 | . 7 . Ballistic Gun 17 | . 17 14 Launcher 1 | . 1 . Peak Build Rating 11 | 7 11 9 Average Rating 8 | 4 8 9 On Entrance 5 | . 7 9 Naked Turns . | . . . Heaviest Build 90 | 14 90 29 Greatest Support 40 | 26 40 20 Greatest Overweight (x) 9 | . 9 1 Average Overweight (x) . | . . 1 Largest Inventory Capacity 25 | 8 25 15 Average Capacity 14 | 7 15 15 Most Carried 15 | 6 15 14 Average Carried 10 | 4 11 14 Final Capacity 15 | 8 15 15 Final Carried 14 | 5 14 14 Class Distribution -------------------- 100% | Mutant Dominant Class ---------------- Mutant | -10/Materials Mutant | -10/Mines Resources | -11 -10 -10 ----------- Run | Yrd Mat Min Matter Collected 666 | 270 396 . Remotely . | . . . Salvage Created 1195 | 184 964 47 Parts 72 | 14 52 6 Haulers Intercepted . | . . . Recyclers Shooed 1 | 1 . . Parts Field Recycled . | . . . Retrieved Matter . | . . . Parts Self-Destructed . | . . . Prevented . | . . . Kills | -11 -10 -10 ------- Run | Yrd Mat Min Combat Hostiles Destroyed 23 | . 20 3 Guns 21 | . 18 3 AOE 2 | . 2 . Classes Destroyed 8 | 3 4 1 Worker 2 | 2 . . Builder 1 | . 1 . Tunneler 3 | 3 . . Recycler 2 | 1 1 . Operator 2 | . 2 . Watcher 1 | . 1 . Swarmer 3 | . . 3 Grunt 20 | . 20 . Best Kill Streak 6 | 6 4 3 Combat Bots Only 4 | . 4 3 Max Kills in Single Turn 1 | 1 1 1 Gunslinging . | . . . Exploded 1 | . 1 . Melee . | . . . Uniques/NPCs Destroyed . | . . . Combat | -11 -10 -10 -------- Run | Yrd Mat Min Hostile Shots Fired 104 | . 96 8 Missed 26 | . 23 3 Hits 78 | . 73 5 Projectile 78 | . 73 5 Damage Taken 1121 | . 1076 45 Core 253 | . 236 17 Absorbed by Shields . | . . . Core Remaining (%) 100 | 100 . . Volleys Fired 106 | 17 85 4 Largest 2 | 1 2 1 Hottest 80 | 40 80 23 Shots Fired 187 | 17 166 4 Gun 180 | 17 159 4 Cannon . | . . . Launcher 7 | . 7 . Special . | . . . Kinetic 112 | . 108 4 Thermal 17 | 17 . . Explosive 7 | . 7 . Electromagnetic 51 | . 51 . Robot Hit Streak 10 | 10 8 3 Robot Miss Streak 4 | 1 4 1 Penetration Max . | . . . Secondary Targets 3 | . 3 . Max Gunslinging Chain 1 | . 1 . Shots Hit Robots 120 | 15 102 3 Core Hits 53 | 7 43 3 Critical Kills . | . . . Critical Parts Destroyed . | . . . Critical Strikes . | . . . Melee Attacks . | . . . Impact . | . . . Slashing . | . . . Piercing . | . . . Sneak Attacks . | . . . Combat Hostiles . | . . . Follow-up Attacks . | . . . Damage Inflicted 2035 | 167 1821 47 Guns 1612 | 167 1398 47 Cannons . | . . . Explosions 402 | . 402 . Melee . | . . . Ramming 21 | . 21 . Kinetic 971 | . 924 47 Thermal 255 | 167 88 . Explosive 314 | . 314 . Electromagnetic 474 | . 474 . Impact . | . . . Slashing . | . . . Piercing . | . . . Highest Corruption . | . . . Average Corruption . | . . . Corruption Purged . | . . . Corruption Blocked . | . . . Overload Shots . | . . . Overflow Damage 71 | . 71 . Projectiles . | . . . Explosions 71 | . 71 . Melee . | . . . Knockbacks . | . . . Impact . | . . . Kinetic . | . . . Secondary . | . . . Self-Inflicted Damage 185 | . 185 . Shots 3 | . 3 . Rammed 2 | . 2 . Targets Rammed 2 | . 2 . Kicked . | . . . Crushed . | . . . Highest Temperature 192 | 20 192 3 Average Temperature 43 | 20 44 3 Received Heat Transfer 498 | . 498 . Siege Activations . | . . . Martial Activations . | . . . Shielding Activations . | . . . Robots Disrupted . | . . . Combat Hostiles . | . . . Robots Corrupted . | . . . Combat Hostiles . | . . . Parts Fried 2 | . 2 . Impact Corruptions . | . . . Robots Melted . | . . . Combat Hostiles . | . . . Parts Melted 2 | 2 . . Heat Transferred 575 | 375 200 . Parts Sabotaged . | . . . Parts Stolen . | . . . Parts Stripped . | . . . Power Chain Reactions 2 | . 2 . Alert | -11 -10 -10 ------- Run | Yrd Mat Min Maximum Alert Level . | . . . Low Security (%) 100 | 100 100 100 Level 1 . | . . . Level 2 . | . . . Level 3 . | . . . Level 4 . | . . . Level 5 . | . . . High Security . | . . . Max Security . | . . . Peak Influence 149 | 10 149 112 Initial 42 | . . 42 Average 68 | 1 74 96 Influence Increases 754 | 30 654 70 Destroy 0b10 Robot/C 460 | . 400 60 Destroy 0b10 Robot/NC 55 | 30 25 . Destroy Leader 112 | . 102 10 Successful Hack 10 | . 10 . Disable Machine 30 | . 30 . Destroy Structure 57 | . 57 . Lose Combat Pursuer 30 | . 30 . Influence Decreases 642 | 30 545 67 Entered New Map 67 | . . 67 Time Decay 495 | 30 465 . Lost Part 80 | . 80 . Squads Dispatched 6 | . 6 . Investigation 4 | . 4 . Extermination . | . . . Reinforcement 2 | . 2 . Assault . | . . . Garrison . | . . . Intercept . | . . . Searches Triggered . | . . . Construction Impeded . | . . . Haulers Reinforced . | . . . Active Scanning Responses . | . . . Cargo Convoy Interrupts . | . . . Stealth | -11 -10 -10 --------- Run | Yrd Mat Min Distress Signals 4 | . 4 . Communications Jammed . | . . . Distress Signals . | . . . Times Spotted 41 | . 35 6 Peak Tracking Total 5 | . 5 3 Tactical Retreats 2 | . 2 . Traps | -11 -10 -10 ------- Run | Yrd Mat Min Traps Triggered 2 | . 2 . Indirectly . | . . . Trap Hack Attempts . | . . . Triggered . | . . . Disarmed . | . . . Reprogrammed . | . . . Reused . | . . . Traps Extracted . | . . . Installed . | . . . Triggered . | . . . Machines | -11 -10 -10 ---------- Run | Yrd Mat Min Machines Disabled 2 | . 2 . Max in Single Turn 1 | . 1 . Machines Repaired . | . . . Machines Dismantled . | . . . Machines Sabotaged . | . . . Overloaded Fab Kills . | . . . Hacking | -11 -10 -10 --------- Run | Yrd Mat Min Machines Accessed 4 | . 4 . Terminals 4 | . 4 . Fabricators . | . . . Repair Stations . | . . . Recycling Units . | . . . Scanalyzers . | . . . Garrison Access . | . . . Total Hacks 13 | . 13 . Successful 4 | . 4 . Failed 9 | . 9 . Catastrophic 1 | . 1 . Database Lockouts . | . . . Manual 13 | . 13 . Terminals 13 | . 13 . Fabricators . | . . . Repair Stations . | . . . Recycling Units . | . . . Scanalyzers . | . . . Garrison Access . | . . . Terminal Hacks 2 | . 2 . Branch Access Points 1 | . 1 . Zone Layout 1 | . 1 . Fabricator Hacks . | . . . Repair Station Hacks . | . . . Recycling Unit Hacks . | . . . Scanalyzer . | . . . Garrison Access Hacks . | . . . Unauthorized Hacks 2 | . 2 . Terminals 2 | . 2 . Botnet 2 | . 2 . Fabricators . | . . . Repair Stations . | . . . Recycling Units . | . . . Scanalyzers . | . . . Garrison Access . | . . . Data Cores Recovered . | . . . Used . | . . . Hacking Detections 4 | . 4 . Full Trace Events 3 | . 3 . Feedback Events . | . . . Feedback Blocked . | . . . Robot Schematics Acquired . | . . . Robots Built . | . . . Authchips . | . . . Time . | . . . Total Robot Build Rating . | . . . Part Schematics Acquired . | . . . Parts Built . | . . . Authchips . | . . . Time . | . . . Total Part Build Rating . | . . . Parts Repaired . | . . . Time . | . . . Parts Recycled . | . . . Recycled Matter . | . . . Retrieved Matter . | . . . Retrieved Components . | . . . Parts Scanalyzed . | . . . Part Schematics Acquired . | . . . Parts Damaged . | . . . Bothacking | -11 -10 -10 ------------ Run | Yrd Mat Min Used RIF Installer . | . . . Robots Hacked . | . . . Non-combat . | . . . Combat . | . . . Robot Hacks Applied . | . . . Relay Couplers Released . | . . . Fabnet Peak Effective % . | . . . Robots Rewired . | . . . Allies Hacked . | . . . Hacks Repelled . | . . . Allies | -11 -10 -10 -------- Run | Yrd Mat Min Total Allies . | . . . Largest Group . | . . . Highest-Rated Group . | . . . Highest-Rated Ally . | . . . Total Orders . | . . . Ally Attacks . | . . . Total Damage . | . . . Kills . | . . . Allies Corrupted . | . . . Allies Melted . | . . . Intel | -11 -10 -10 ------- Run | Yrd Mat Min Active Infowar (turns) 1398 | 11 1368 19 Seismic 1398 | 11 1368 19 Robot Analysis Total . | . . . Derelict Logs Recovered . | . . . Drone Launches . | . . . Drone Recoveries . | . . . Exploration | -11 -10 -10 ------------- Run | Yrd Mat Min Turns Passed 1764 | 153 1592 19 Spaces Moved 1123 | 117 994 12 Core 10 | 6 4 . Treads 362 | . 362 . Legs . | . . . Wheels 751 | 111 628 12 Hover . | . . . Flight . | . . . Fastest Speed 50 | 50 90 95 Average Speed 117 | 88 121 95 Slowest Speed 500 | 100 500 95 Overloaded Moves . | . . . Propulsion Burnouts . | . . . Robots Hopped . | . . . Potential Cave-ins . | . . . Cave-ins Triggered . | . . . Exploration Rate (%) 34 | 5 93 6 Regions Visited 2 Branch Regions 1 Pre-discovered Areas . | . . . Known Exits Taken 1 | . 1 . Unknown Exits Taken 1 | 1 . . Scrap Searched . | . . . Spaces Dug . | . . . Terrain Destroyed 59 | . 59 . Melee . | . . . Projectile . | . . . AOE 59 | . 59 . Terrain Rammed . | . . . Walls Destroyed . | . . . Machines Disabled . | . . . Actions | -11 -10 -10 --------- Run | Yrd Mat Min Total 1391 | 146 1229 16 Wait 104 | . 104 . Move 1121 | 116 993 12 Hop . | . . . Pick Up 21 | 6 15 . Fast Attach 13 | 6 7 . Attach 8 | 1 7 . Detach 3 | . 3 . Swap 6 | . 6 . Drop 7 | . 7 . Fire 106 | 17 85 4 Melee . | . . . Ram 2 | . 2 . Kick . | . . . Crush . | . . . Escape Stasis . | . . . Rewire . | . . . Trap . | . . . Miscellaneous . | . . . Route ------- -11/Scrapyard -10/Materials (discovered 5 exits: [*Mat x3] / *Min / [*Sub]) -10/Mines History --------- Turn | Location | Event 12 | -11/Scrapyard | Discovered new exit (range 15) 154 | -11/Scrapyard | Entered Materials 321 | -10/Materials | Build established: Mutant 407 | -10/Materials | Lost 4 parts (2n2w) 448 | -10/Materials | Discovered new exit (range 10) 763 | -10/Materials | Discovered new exit (range 10) 975 | -10/Materials | Core integrity fell below 50% 1160 | -10/Materials | Discovered new exit (range 15) 1405 | -10/Materials | Core integrity fell below 20% 1497 | -10/Materials | Discovered new exit (range 5) 1686 | -10/Materials | Identified exit to Mines 1746 | -10/Materials | Entered Mines 1765 | -10/Mines | Destroyed by S-10 Pest with Light Assault Rifle Last Messages --------------- 01576_ U-05 Engineer works on Matter Pump. 01587_ U-05 Engineer completes Matter Pump. 01590_ U-05 Engineer works on Matter Pump. 01593_ Matter Pump comes online. 01594_ U-05 Engineer works on Matter Pump. 01686_ Connecting with Terminal... >>Access(Branch) Found 1 branch access point: (8,11) Mines Map updated. 01729_ K-01 Serf cleans the Matter Pump. 01733_ K-01 Serf collects debris. 01740_ K-01 Serf cleans the Matter Pump. LOCATION=MINES GOAL=ESCAPE 01747_ T-07 Excavator is excavating. 01748_ S-10 Pest destroyed. 01750_ T-07 Excavator is excavating. 01752_ S-10 Pest destroyed. 01754_ T-07 Excavator is excavating. Map ----- +----------------------------------------------------+ | ?????????????????????????????????????????????????? | | ?????????????????????????????????????????????????? | | ?????????????????????????????????????????????????? | | ?????????????????????????????????????????????????? | | ?????????????????????????????????????????????????? | | ?????????????????????????????????????????????????? | | ?????????????????????????????????????????????????? | | ?????????????????????????????????????????????????? | | ?????????????????????????????????????????????????? | | ?????????????????????????????????????????????????? | | ?????????????????????????????????????????????????? | | ?????????????????????????????????????????????????? | | ?????????????????????????????????????????????????? | | ???????????????????????####??????????#???????????? | | ???????????????????????# ????????? #???????????? | | ??????????????????????? ????????? #???????????? | | ??????????????????????? ????????? #???????????? | | ??????????????????????? ????????? #####???????? | | ???????????????????????# ????????? # #???????? | | ???????????????????????# ????????? #???????? | | ???????????????????????# #????????? ????????? | | ???????????????????????# #???????## #?????????? | | ???????????????????????#ss#??????## #?????????? | | ???????????????????????# s#??????#%* #?????????? | | ???????????????????????# ########===% #?????????? | | ???????????????????????# @ = #?????????? | | ???????????????????????# =% ##?????????? | | ???????????????????????################??????????? | | ?????????????????????????????????????????????????? | | ?????????????????????????????????????????????????? | | ?????????????????????????????????????????????????? | | ?????????????????????????????????????????????????? | | | | | | | | | | | | | | | | | | | | | | | | | | | | | | | | | | | | | +----------------------------------------------------+ Best States ------------- Heat Dissipation 25 Energy Generation 10 Energy Capacity 250 Matter Stores 300 Matter Capacity 300 Sight Range 16 Terrain Scan Density 10 Evasion (%) 42 Recoil Reduction 2 Item Schematics ----------------- None Robot Schematics ------------------ None Fabricated ------------ Nothing Repaired ---------- Nothing Alien Tech Used ----------------- None Achievements -------------- None Challenges ------------ None Game ------ Seed LegElectronMatterbank Manual? 0 Play Time 00:12:05 Cumulative 18.7 hours Start 2025.10.07 @ 15:08:32 End 2025.10.07 @ 15:37:24 Sessions 1 Manual Loads 0 Difficulty Rogue Special Mode None Game No. 56 Rogue 49 Adventurer 7 Explorer 0 Win Type - Total 0 Types 0/0/0/0/0/0/0/0/0/0 Lore% 4 Gallery% 19 Achievement% 19 Wizard Run 0 Options --------- Layout 0 ASCII 0 Keyboard 1 Movement Vi Keybinds 0 Fullscreen 1 Font 18/SmallcapsGlow Map View 112x50 Zoom Use 18% Tactical HUD 1 Map Filters NONE Filters NONE Steam 1 RUN: 9bf8d7ab-f901-4240-b560-d8324c8d7c17